[Event "*** Titled Tuesday Blitz"]
[Site "Chess.com"]
[Date "2021.03.16"]
[Round "4"]
[White "MelihKaanCan"]
[Black "NishaOnYoutube"]
[Result "0-1"]
[WhiteElo "2332"]
[BlackElo "2229"]
[TimeControl "180+1"]
[EndTime "10:39:52 PDT"]
[Termination "NishaOnYoutube won by resignation"]

1. d4 {[%clk 0:03:00.9]} 1... f5 {[%clk 0:02:57]} 2. c4 {[%clk 0:02:57.4]} 2...
Nf6 {[%clk 0:02:56]} 3. Nc3 {[%clk 0:02:57.9]} 3... d6 {[%clk 0:02:53.8]} 4. g3
{[%clk 0:02:54.2]} 4... g6 {[%clk 0:02:52.6]} 5. Bg2 {[%clk 0:02:54.1]} 5... Bg7
{[%clk 0:02:52.8]} 6. Nf3 {[%clk 0:02:52.7]} 6... O-O {[%clk 0:02:51.9]} 7. O-O
{[%clk 0:02:52.7]} 7... Nc6 {[%clk 0:02:51.9]} 8. d5 {[%clk 0:02:52.1]} 8... Na5
{[%clk 0:02:51.6]} 9. Nd2 {[%clk 0:02:49.2]} 9... c5 {[%clk 0:02:48.4]} 10. Qc2
{[%clk 0:02:38.7]} 10... a6 {[%clk 0:02:43.4]} 11. b3 {[%clk 0:02:33.5]} 11...
Bd7 {[%clk 0:02:29.1]} 12. Bb2 {[%clk 0:02:32.1]} 12... b5 {[%clk 0:02:04.8]}
13. Rfe1 {[%clk 0:02:19]} 13... Rb8 {[%clk 0:01:44.4]} 14. h3 {[%clk 0:02:03.3]}
14... Qb6 {[%clk 0:01:31.6]} 15. Rab1 {[%clk 0:02:03]} 15... f4 {[%clk
0:01:04.8]} 16. gxf4 {[%clk 0:01:20]} 16... Nh5 {[%clk 0:01:04.2]} 17. e3 {[%clk
0:01:17.7]} 17... Bf5 {[%clk 0:00:50.3]} 18. Qc1 {[%clk 0:00:46.6]} 18... Bxb1
{[%clk 0:00:48.7]} 19. Ncxb1 {[%clk 0:00:36.3]} 19... bxc4 {[%clk 0:00:48]} 20.
Bxg7 {[%clk 0:00:35.8]} 20... Nxg7 {[%clk 0:00:47.2]} 21. Nxc4 {[%clk
0:00:34.8]} 21... Nxc4 {[%clk 0:00:47.1]} 22. Qxc4 {[%clk 0:00:35.7]} 22... a5
{[%clk 0:00:44.1]} 23. Qe4 {[%clk 0:00:35.4]} 23... Qb4 {[%clk 0:00:42.1]} 24.
Rc1 {[%clk 0:00:22.1]} 24... Qxe4 {[%clk 0:00:41.1]} 25. Bxe4 {[%clk 0:00:23]}
25... a4 {[%clk 0:00:35.5]} 26. bxa4 {[%clk 0:00:18.8]} 26... Rb4 {[%clk
0:00:35.5]} 27. Nc3 {[%clk 0:00:16.3]} 27... Rfb8 {[%clk 0:00:33]} 28. Bd3
{[%clk 0:00:13.4]} 28... Ne8 {[%clk 0:00:24.4]} 29. Bb5 {[%clk 0:00:11.8]} 29...
Nc7 {[%clk 0:00:22.8]} 30. Bc6 {[%clk 0:00:12.1]} 30... Kf7 {[%clk 0:00:12.2]}
31. Kg2 {[%clk 0:00:12.4]} 31... Na6 {[%clk 0:00:11.5]} 32. Nb5 {[%clk
0:00:09.9]} 32... Rb2 {[%clk 0:00:10.2]} 33. Nc3 {[%clk 0:00:03.1]} 33... Nb4
{[%clk 0:00:09.5]} 34. Bb5 {[%clk 0:00:03.6]} 34... Nxa2 {[%clk 0:00:09.3]} 35.
Ne4 {[%clk 0:00:04.1]} 35... Nxc1 {[%clk 0:00:08.6]} 36. Ng5+ {[%clk 0:00:05]}
36... Kf6 {[%clk 0:00:07.7]} 37. Ne6 {[%clk 0:00:05.9]} 37... Ra2 {[%clk
0:00:06.6]} 38. Bd7 {[%clk 0:00:05]} 38... Nb3 {[%clk 0:00:06.2]} 39. Ng5 {[%clk
0:00:05.4]} 39... Nd2 {[%clk 0:00:06]} 40. Nxh7+ {[%clk 0:00:05.6]} 40... Kg7
{[%clk 0:00:05.9]} 41. Ng5 {[%clk 0:00:06.5]} 41... Rbb2 {[%clk 0:00:05.3]} 42.
Ne6+ {[%clk 0:00:03.9]} 42... Kf6 {[%clk 0:00:04.3]} 43. Ng5 {[%clk 0:00:03.7]}
43... Nc4 {[%clk 0:00:04.5]} 44. Kg3 {[%clk 0:00:04.2]} 44... Kg7 {[%clk
0:00:02.9]} 45. Ne4 {[%clk 0:00:03.6]} 45... Kg8 {[%clk 0:00:02.6]} 46. Bb5
{[%clk 0:00:03.7]} 46... Na3 {[%clk 0:00:02.3]} 47. Be8 {[%clk 0:00:03.9]} 47...
Rc2 {[%clk 0:00:01.8]} 48. Bxg6 {[%clk 0:00:03.9]} 48... Kg7 {[%clk 0:00:01.3]}
49. Bf5 {[%clk 0:00:04.8]} 49... Nb1 {[%clk 0:00:01.6]} 50. h4 {[%clk
0:00:05.7]} 50... Ra3 {[%clk 0:00:02.1]} 51. h5 {[%clk 0:00:06]} 51... Rc1
{[%clk 0:00:03]} 52. h6+ {[%clk 0:00:06.9]} 52... Kxh6 {[%clk 0:00:02.9]} 53.
Ng5 {[%clk 0:00:07.8]} 53... Rg1+ {[%clk 0:00:03.1]} 54. Kh4 {[%clk 0:00:07.6]}
54... Rxg5 {[%clk 0:00:04]} 55. fxg5+ {[%clk 0:00:08.5]} 55... Kg7 {[%clk
0:00:04.5]} 56. f4 {[%clk 0:00:09.4]} 56... Rxa4 {[%clk 0:00:04.9]} 57. Bd7
{[%clk 0:00:10.3]} 57... Re4 {[%clk 0:00:03.3]} 58. Kg4 {[%clk 0:00:08.7]} 58...
Rxe3 {[%clk 0:00:04.2]} 59. Kf5 {[%clk 0:00:08.9]} 59... Nc3 {[%clk 0:00:04.5]}
60. Be8 {[%clk 0:00:07.1]} 60... Ne2 {[%clk 0:00:04.9]} 61. Kg4 {[%clk
0:00:05.4]} 61... Nd4 {[%clk 0:00:05.8]} 62. Bc6 {[%clk 0:00:04.4]} 62... c4
{[%clk 0:00:06.1]} 63. Ba4 {[%clk 0:00:04.4]} 63... c3 {[%clk 0:00:06.4]} 0-1

[Event "*** Titled Tuesday Blitz"]
[Site "Chess.com"]
[Date "2021.03.16"]
[Round "4"]
[White "ChessLover0108"]
[Black "Konavets"]
[Result "0-1"]
[WhiteElo "2780"]
[BlackElo "2954"]
[TimeControl "180+1"]
[EndTime "10:39:56 PDT"]
[Termination "Konavets won by resignation"]

1. Nf3 {[%clk 0:03:00.9]} 1... d5 {[%clk 0:02:57.2]} 2. d4 {[%clk 0:02:57]} 2...
Nf6 {[%clk 0:02:57]} 3. c4 {[%clk 0:02:57.9]} 3... e6 {[%clk 0:02:55.3]} 4. Nc3
{[%clk 0:02:58.2]} 4... g6 {[%clk 0:02:56]} 5. cxd5 {[%clk 0:02:43.8]} 5... exd5
{[%clk 0:02:55.8]} 6. g3 {[%clk 0:02:42.8]} 6... Bg7 {[%clk 0:02:55.7]} 7. Bg2
{[%clk 0:02:43.4]} 7... O-O {[%clk 0:02:56.1]} 8. O-O {[%clk 0:02:44.3]} 8...
Re8 {[%clk 0:02:56.4]} 9. Bf4 {[%clk 0:02:42.6]} 9... c6 {[%clk 0:02:56.4]} 10.
Ne5 {[%clk 0:02:42]} 10... Nbd7 {[%clk 0:02:55.3]} 11. b4 {[%clk 0:02:37.7]}
11... Nh5 {[%clk 0:02:54.4]} 12. e3 {[%clk 0:02:27.5]} 12... Nxe5 {[%clk
0:02:51.5]} 13. Bxe5 {[%clk 0:02:27.2]} 13... Bxe5 {[%clk 0:02:51.6]} 14. dxe5
{[%clk 0:02:28.1]} 14... Rxe5 {[%clk 0:02:51.8]} 15. b5 {[%clk 0:02:27.7]} 15...
Nf6 {[%clk 0:02:50.6]} 16. bxc6 {[%clk 0:02:25.7]} 16... bxc6 {[%clk 0:02:51.5]}
17. Rc1 {[%clk 0:02:26.5]} 17... Ba6 {[%clk 0:02:47.8]} 18. Re1 {[%clk
0:02:26.6]} 18... Bc4 {[%clk 0:02:48.3]} 19. Qd4 {[%clk 0:02:25.9]} 19... Qe7
{[%clk 0:02:46.4]} 20. Na4 {[%clk 0:01:46.7]} 20... Ne4 {[%clk 0:02:39.7]} 21.
Rb1 {[%clk 0:01:15.8]} 21... c5 {[%clk 0:02:34.3]} 22. Qb2 {[%clk 0:01:13.4]}
22... Re8 {[%clk 0:02:33.9]} 23. Red1 {[%clk 0:01:09.3]} 23... Rf5 {[%clk
0:02:29.8]} 24. Bxe4 {[%clk 0:00:57.9]} 24... dxe4 {[%clk 0:02:30]} 25. Qb7
{[%clk 0:00:41.3]} 25... Bd3 {[%clk 0:02:30]} 26. Qxe7 {[%clk 0:00:35.4]} 26...
Rxe7 {[%clk 0:02:30.9]} 27. Rb8+ {[%clk 0:00:32.4]} 27... Kg7 {[%clk 0:02:30.9]}
28. Rc1 {[%clk 0:00:31.6]} 28... c4 {[%clk 0:02:30.3]} 29. Nc3 {[%clk
0:00:29.4]} 29... Ra5 {[%clk 0:02:30.1]} 30. a4 {[%clk 0:00:27.5]} 30... h5
{[%clk 0:02:26.2]} 31. h4 {[%clk 0:00:21.3]} 31... g5 {[%clk 0:02:25.6]} 32.
hxg5 {[%clk 0:00:22.2]} 32... Rxg5 {[%clk 0:02:25.9]} 33. Rb5 {[%clk 0:00:22.2]}
33... Ree5 {[%clk 0:02:23]} 34. Kh2 {[%clk 0:00:19.3]} 34... Kg6 {[%clk
0:02:21.2]} 35. Rd1 {[%clk 0:00:17.4]} 35... Rgf5 {[%clk 0:02:19.5]} 36. Rd2
{[%clk 0:00:17.1]} 36... Kg5 {[%clk 0:02:17.4]} 37. Rdb2 {[%clk 0:00:16.3]}
37... Kg4 {[%clk 0:02:15.6]} 38. Kg2 {[%clk 0:00:15.9]} 38... h4 {[%clk
0:02:15.7]} 39. gxh4 {[%clk 0:00:16.8]} 39... Kxh4 {[%clk 0:02:16.6]} 40. Rxe5
{[%clk 0:00:14.2]} 40... Rxe5 {[%clk 0:02:17.5]} 41. Rb7 {[%clk 0:00:14.4]}
41... Rg5+ {[%clk 0:02:15.8]} 42. Kh2 {[%clk 0:00:14.9]} 42... Rf5 {[%clk
0:02:16.4]} 43. Kg2 {[%clk 0:00:15.5]} 43... a5 {[%clk 0:01:54.6]} 44. Re7
{[%clk 0:00:15.1]} 44... Kg4 {[%clk 0:01:47.3]} 45. Nxe4 {[%clk 0:00:13.3]}
45... Be2 {[%clk 0:01:47.6]} 46. Kg1 {[%clk 0:00:06.7]} 46... Bf3 {[%clk
0:01:45.7]} 47. Nd2 {[%clk 0:00:07]} 47... Rc5 {[%clk 0:01:38.1]} 48. Rxf7
{[%clk 0:00:05.9]} 48... c3 {[%clk 0:01:33.2]} 49. Rf4+ {[%clk 0:00:06.3]} 49...
Kh5 {[%clk 0:01:33.1]} 50. Nb3 {[%clk 0:00:04.7]} 50... Rg5+ {[%clk 0:00:50]}
51. Kh2 {[%clk 0:00:05]} 51... Bd1 {[%clk 0:00:23.9]} 52. Nc1 {[%clk 0:00:02.8]}
52... c2 {[%clk 0:00:21.1]} 53. Rc4 {[%clk 0:00:03.4]} 53... Rd5 {[%clk
0:00:14.6]} 54. Kg3 {[%clk 0:00:02.9]} 54... Kg6 {[%clk 0:00:14.3]} 55. f4
{[%clk 0:00:02.9]} 55... Rd8 {[%clk 0:00:12.9]} 56. Rc5 {[%clk 0:00:03.3]} 56...
Rb8 {[%clk 0:00:13.1]} 57. Nd3 {[%clk 0:00:02.8]} 57... Rb3 {[%clk 0:00:11.5]}
58. Ne5+ {[%clk 0:00:03.3]} 58... Kf6 {[%clk 0:00:11.3]} 59. Kf2 {[%clk
0:00:03.8]} 59... Ra3 {[%clk 0:00:08.4]} 60. Ke1 {[%clk 0:00:03.6]} 60... Rxa4
{[%clk 0:00:08.7]} 61. Kd2 {[%clk 0:00:04.5]} 61... Ra1 {[%clk 0:00:08.7]} 62.
Nd3 {[%clk 0:00:03.8]} 62... a4 {[%clk 0:00:08.9]} 63. Nb2 {[%clk 0:00:03.6]}
63... a3 {[%clk 0:00:08.4]} 64. Nd3 {[%clk 0:00:02.7]} 64... a2 {[%clk
0:00:07.8]} 65. Ra5 {[%clk 0:00:03.3]} 65... Bf3 {[%clk 0:00:05.8]} 66. Kxc2
{[%clk 0:00:03.1]} 66... Be4 {[%clk 0:00:06.3]} 67. Ra3 {[%clk 0:00:02.4]} 67...
Bxd3+ {[%clk 0:00:05.7]} 68. Rxd3 {[%clk 0:00:03.3]} 68... Rh1 {[%clk
0:00:04.8]} 0-1

[Event "*** Titled Tuesday Blitz"]
[Site "Chess.com"]
[Date "2021.03.16"]
[Round "4"]
[White "Abund"]
[Black "renehp"]
[Result "0-1"]
[WhiteElo "2684"]
[BlackElo "2470"]
[TimeControl "180+1"]
[EndTime "10:39:58 PDT"]
[Termination "renehp won by checkmate"]

1. e4 {[%clk 0:03:00.9]} 1... c5 {[%clk 0:02:59.3]} 2. Nf3 {[%clk 0:02:58.6]}
2... d6 {[%clk 0:02:58.7]} 3. Bb5+ {[%clk 0:02:58.1]} 3... Bd7 {[%clk
0:02:53.2]} 4. Bxd7+ {[%clk 0:02:58.1]} 4... Qxd7 {[%clk 0:02:54.1]} 5. c4
{[%clk 0:02:58.1]} 5... Nc6 {[%clk 0:02:53.3]} 6. Nc3 {[%clk 0:02:58.5]} 6...
Nf6 {[%clk 0:02:53.4]} 7. d4 {[%clk 0:02:58.5]} 7... cxd4 {[%clk 0:02:54.3]} 8.
Nxd4 {[%clk 0:02:59.4]} 8... g6 {[%clk 0:02:54.8]} 9. O-O {[%clk 0:02:59.6]}
9... Bg7 {[%clk 0:02:53.5]} 10. Be3 {[%clk 0:02:59.9]} 10... Ng4 {[%clk
0:02:52.4]} 11. Nc2 {[%clk 0:02:37.9]} 11... Nxe3 {[%clk 0:02:50.7]} 12. Nxe3
{[%clk 0:02:36.8]} 12... O-O {[%clk 0:02:51]} 13. Rc1 {[%clk 0:02:34.7]} 13...
a6 {[%clk 0:02:49.5]} 14. b3 {[%clk 0:02:33]} 14... Rfc8 {[%clk 0:02:42.5]} 15.
Ncd5 {[%clk 0:02:26.3]} 15... Qd8 {[%clk 0:02:41.2]} 16. a4 {[%clk 0:02:25.7]}
16... e6 {[%clk 0:02:40.1]} 17. Nc3 {[%clk 0:02:22.2]} 17... Qa5 {[%clk
0:02:38.5]} 18. Ne2 {[%clk 0:02:15.7]} 18... Rd8 {[%clk 0:02:21.7]} 19. Qe1
{[%clk 0:02:02.9]} 19... Nb4 {[%clk 0:02:14.9]} 20. Nc2 {[%clk 0:01:51.8]} 20...
Nc6 {[%clk 0:02:10.9]} 21. Ne3 {[%clk 0:01:36.6]} 21... Rac8 {[%clk 0:02:05]}
22. Rd1 {[%clk 0:01:27.3]} 22... Qc5 {[%clk 0:01:59.4]} 23. Qd2 {[%clk
0:01:22.4]} 23... Nb4 {[%clk 0:01:57.7]} 24. Nf4 {[%clk 0:01:19.3]} 24... b5
{[%clk 0:01:28.1]} 25. axb5 {[%clk 0:01:16.3]} 25... axb5 {[%clk 0:01:29]} 26.
Nd3 {[%clk 0:01:15.4]} 26... Nxd3 {[%clk 0:01:27.9]} 27. Qxd3 {[%clk 0:01:15.7]}
27... bxc4 {[%clk 0:01:28.2]} 28. Nxc4 {[%clk 0:01:08.1]} 28... d5 {[%clk
0:01:23]} 29. exd5 {[%clk 0:01:06.4]} 29... Rxd5 {[%clk 0:01:23.9]} 30. Qf3
{[%clk 0:01:01.2]} 30... Rcd8 {[%clk 0:01:14.2]} 31. g3 {[%clk 0:00:52]} 31...
Bd4 {[%clk 0:01:06.9]} 32. Kg2 {[%clk 0:00:42.4]} 32... h5 {[%clk 0:01:06]} 33.
Rd3 {[%clk 0:00:39.3]} 33... Bg7 {[%clk 0:01:04.6]} 34. Rfd1 {[%clk 0:00:38.6]}
34... Rxd3 {[%clk 0:01:04.5]} 35. Rxd3 {[%clk 0:00:38.7]} 35... Rxd3 {[%clk
0:01:04.5]} 36. Qxd3 {[%clk 0:00:39.6]} 36... Bd4 {[%clk 0:01:03.8]} 37. Qf3
{[%clk 0:00:39.1]} 37... Kg7 {[%clk 0:01:03.2]} 38. Nd2 {[%clk 0:00:39.1]} 38...
f5 {[%clk 0:00:59.7]} 39. Qb7+ {[%clk 0:00:37.5]} 39... Kh6 {[%clk 0:00:57.2]}
40. b4 {[%clk 0:00:33.1]} 40... Qc2 {[%clk 0:00:55.6]} 41. Qe7 {[%clk
0:00:05.3]} 41... Qxd2 {[%clk 0:00:54.2]} 42. Qf8+ {[%clk 0:00:05.7]} 42... Bg7
{[%clk 0:00:52.8]} 43. Qe7 {[%clk 0:00:05.4]} 43... Qd5+ {[%clk 0:00:52.1]} 44.
Kg1 {[%clk 0:00:05.9]} 44... e5 {[%clk 0:00:52.5]} 45. h4 {[%clk 0:00:06.2]}
45... Kh7 {[%clk 0:00:47.3]} 46. Qe8 {[%clk 0:00:05.4]} 46... Qd1+ {[%clk
0:00:42.5]} 47. Kg2 {[%clk 0:00:04]} 47... Qd5+ {[%clk 0:00:42.5]} 48. Kg1
{[%clk 0:00:04]} 48... e4 {[%clk 0:00:43]} 49. b5 {[%clk 0:00:03.3]} 49... Qd1+
{[%clk 0:00:39.3]} 50. Kg2 {[%clk 0:00:03.1]} 50... Qf3+ {[%clk 0:00:39.5]} 51.
Kg1 {[%clk 0:00:02.5]} 51... e3 {[%clk 0:00:39.3]} 52. Qxe3 {[%clk 0:00:02.7]}
52... Qxe3 {[%clk 0:00:39.2]} 53. fxe3 {[%clk 0:00:03.6]} 53... Be5 {[%clk
0:00:32]} 54. Kf2 {[%clk 0:00:04.1]} 54... Kg7 {[%clk 0:00:29.9]} 55. Kf3 {[%clk
0:00:04.4]} 55... Kf6 {[%clk 0:00:29.7]} 56. b6 {[%clk 0:00:02.6]} 56... Bb8
{[%clk 0:00:28.8]} 57. b7 {[%clk 0:00:02.7]} 57... Bc7 {[%clk 0:00:28.8]} 58. e4
{[%clk 0:00:02.7]} 58... fxe4+ {[%clk 0:00:29.7]} 59. Kf2 {[%clk 0:00:03.1]}
59... Ke5 {[%clk 0:00:29.1]} 60. g4 {[%clk 0:00:03]} 60... hxg4 {[%clk
0:00:28.9]} 61. Kg3 {[%clk 0:00:03.5]} 61... e3 {[%clk 0:00:29.1]} 62. Kxg4
{[%clk 0:00:04]} 62... e2 {[%clk 0:00:29]} 63. b8=Q {[%clk 0:00:04.5]} 63...
Bxb8 {[%clk 0:00:29.2]} 64. Kg5 {[%clk 0:00:05]} 64... e1=Q {[%clk 0:00:29.7]}
65. Kxg6 {[%clk 0:00:04.7]} 65... Qxh4 {[%clk 0:00:29.8]} 66. Kg7 {[%clk
0:00:04.8]} 66... Qg4+ {[%clk 0:00:30.1]} 67. Kf7 {[%clk 0:00:04.4]} 67... Qf5+
{[%clk 0:00:29.5]} 68. Ke8 {[%clk 0:00:03.9]} 68... Qh7 {[%clk 0:00:29]} 69. Kd8
{[%clk 0:00:02.8]} 69... Bd6 {[%clk 0:00:29.3]} 70. Ke8 {[%clk 0:00:02.9]} 70...
Qe7# {[%clk 0:00:29.6]} 0-1

[Event "*** Titled Tuesday Blitz"]
[Site "Chess.com"]
[Date "2021.03.16"]
[Round "4"]
[White "NiranjanNavalgund"]
[Black "ChessQueen"]
[Result "1-0"]
[WhiteElo "2516"]
[BlackElo "2707"]
[TimeControl "180+1"]
[EndTime "10:40:14 PDT"]
[Termination "NiranjanNavalgund won on time"]

1. e4 {[%clk 0:03:00.9]} 1... c6 {[%clk 0:02:59.8]} 2. Nc3 {[%clk 0:03:00.4]}
2... d5 {[%clk 0:02:59.5]} 3. Nf3 {[%clk 0:03:00.9]} 3... dxe4 {[%clk
0:02:58.6]} 4. Nxe4 {[%clk 0:03:00]} 4... Nf6 {[%clk 0:02:58.6]} 5. Qe2 {[%clk
0:02:59.3]} 5... Nxe4 {[%clk 0:02:58.5]} 6. Qxe4 {[%clk 0:02:59.3]} 6... Nd7
{[%clk 0:02:58.4]} 7. Bc4 {[%clk 0:02:58.1]} 7... Nf6 {[%clk 0:02:58.2]} 8. Ne5
{[%clk 0:02:58.1]} 8... e6 {[%clk 0:02:55.9]} 9. Qh4 {[%clk 0:02:57.1]} 9... Qa5
{[%clk 0:02:42.6]} 10. Nf3 {[%clk 0:02:45]} 10... Be7 {[%clk 0:02:40.2]} 11. O-O
{[%clk 0:02:44.2]} 11... O-O {[%clk 0:02:33.8]} 12. d3 {[%clk 0:02:44]} 12... b5
{[%clk 0:02:28.6]} 13. Bb3 {[%clk 0:02:43.5]} 13... Bb7 {[%clk 0:02:27.9]} 14.
Bd2 {[%clk 0:02:33.4]} 14... Qb6 {[%clk 0:02:23.7]} 15. Ng5 {[%clk 0:02:29.3]}
15... c5 {[%clk 0:02:15.4]} 16. Bc3 {[%clk 0:02:14.2]} 16... h6 {[%clk
0:02:10.3]} 17. Nf3 {[%clk 0:02:03.1]} 17... Bxf3 {[%clk 0:01:56.7]} 18. gxf3
{[%clk 0:02:02.3]} 18... Qc6 {[%clk 0:01:56.7]} 19. a4 {[%clk 0:01:44.4]} 19...
b4 {[%clk 0:01:43.5]} 20. Bxf6 {[%clk 0:01:44.4]} 20... Bxf6 {[%clk 0:01:43.4]}
21. Qe4 {[%clk 0:01:45.3]} 21... Qxe4 {[%clk 0:01:40.4]} 22. fxe4 {[%clk
0:01:43.9]} 22... Bxb2 {[%clk 0:01:40.5]} 23. Rad1 {[%clk 0:01:44.1]} 23... Bd4
{[%clk 0:01:39.8]} 24. Kh1 {[%clk 0:01:42.7]} 24... g6 {[%clk 0:01:27.2]} 25. f4
{[%clk 0:01:42.9]} 25... Kg7 {[%clk 0:01:27.7]} 26. Rf3 {[%clk 0:01:42.7]} 26...
Rad8 {[%clk 0:01:25.1]} 27. Rdf1 {[%clk 0:01:42.2]} 27... Bc3 {[%clk 0:01:23.1]}
28. Rg3 {[%clk 0:01:42.3]} 28... Rd6 {[%clk 0:01:14.2]} 29. h4 {[%clk
0:01:42.2]} 29... h5 {[%clk 0:01:13.6]} 30. Kg2 {[%clk 0:01:35.4]} 30... Rfd8
{[%clk 0:01:12.8]} 31. Kh3 {[%clk 0:01:35.1]} 31... Rd4 {[%clk 0:01:09.6]} 32.
f5 {[%clk 0:01:33.7]} 32... exf5 {[%clk 0:00:56.3]} 33. exf5 {[%clk 0:01:33.7]}
33... R8d7 {[%clk 0:00:48.4]} 34. Rgf3 {[%clk 0:01:14.2]} 34... a5 {[%clk
0:00:24.5]} 35. fxg6 {[%clk 0:00:57.6]} 35... fxg6 {[%clk 0:00:25.4]} 36. Rf7+
{[%clk 0:00:58]} 36... Kh6 {[%clk 0:00:25.7]} 37. Rf8 {[%clk 0:00:51.6]} 37...
Rg4 {[%clk 0:00:23.1]} 38. Re8 {[%clk 0:00:41.3]} 38... Rc7 {[%clk 0:00:15]} 39.
Rff8 {[%clk 0:00:32.7]} 39... Bg7 {[%clk 0:00:13.9]} 40. Rf3 {[%clk 0:00:28.1]}
40... Rd4 {[%clk 0:00:12.6]} 41. Re6 {[%clk 0:00:26.4]} 41... Rg4 {[%clk
0:00:11.5]} 42. Ra6 {[%clk 0:00:25.2]} 42... Rd7 {[%clk 0:00:11.5]} 43. Be6
{[%clk 0:00:24.6]} 43... Rdd4 {[%clk 0:00:10.3]} 44. Rg3 {[%clk 0:00:17]} 44...
Rxg3+ {[%clk 0:00:09.4]} 45. Kxg3 {[%clk 0:00:17.2]} 45... Be5+ {[%clk
0:00:10.1]} 46. Kh3 {[%clk 0:00:17.1]} 46... Kg7 {[%clk 0:00:10.6]} 47. Rxa5
{[%clk 0:00:16.1]} 47... Bf6 {[%clk 0:00:10.7]} 48. Ra7+ {[%clk 0:00:15.8]}
48... Kh6 {[%clk 0:00:10.2]} 49. Rf7 {[%clk 0:00:15.8]} 49... Rxh4+ {[%clk
0:00:09.7]} 50. Kg3 {[%clk 0:00:15.5]} 50... Bg5 {[%clk 0:00:09.1]} 51. a5
{[%clk 0:00:14.9]} 51... Rh1 {[%clk 0:00:09.7]} 52. Ra7 {[%clk 0:00:12]} 52...
Ra1 {[%clk 0:00:10.1]} 53. Bg8 {[%clk 0:00:12]} 53... Be3 {[%clk 0:00:09.2]} 54.
Kf3 {[%clk 0:00:12.2]} 54... Bd4 {[%clk 0:00:09.2]} 55. a6 {[%clk 0:00:12.5]}
55... h4 {[%clk 0:00:08.5]} 56. Rh7+ {[%clk 0:00:11.2]} 56... Kg5 {[%clk
0:00:08.8]} 57. a7 {[%clk 0:00:12.1]} 57... b3 {[%clk 0:00:09]} 58. Bxb3 {[%clk
0:00:12.1]} 58... c4 {[%clk 0:00:09.5]} 59. Bxc4 {[%clk 0:00:12.5]} 59... Rxa7
{[%clk 0:00:09.2]} 60. Rxa7 {[%clk 0:00:07.9]} 60... Bxa7 {[%clk 0:00:10.1]} 61.
Be6 {[%clk 0:00:08.1]} 61... Bb8 {[%clk 0:00:09.8]} 62. Bh3 {[%clk 0:00:09]}
62... Be5 {[%clk 0:00:09.3]} 63. c4 {[%clk 0:00:09.9]} 63... Kf6 {[%clk
0:00:08.9]} 64. Ke4 {[%clk 0:00:10.8]} 64... Bc7 {[%clk 0:00:07.6]} 65. d4
{[%clk 0:00:11.7]} 65... Ke7 {[%clk 0:00:08]} 66. Kd5 {[%clk 0:00:11.9]} 66...
Bg3 {[%clk 0:00:05.8]} 67. Kc6 {[%clk 0:00:11.6]} 67... Kd8 {[%clk 0:00:03.7]}
68. d5 {[%clk 0:00:11.4]} 68... g5 {[%clk 0:00:04.3]} 69. c5 {[%clk 0:00:11.6]}
69... Bf2 {[%clk 0:00:04.9]} 70. d6 {[%clk 0:00:11.1]} 70... Be3 {[%clk
0:00:04.4]} 71. Kd5 {[%clk 0:00:11.4]} 71... Bd2 {[%clk 0:00:02.4]} 72. c6
{[%clk 0:00:11.6]} 72... Ba5 {[%clk 0:00:02.5]} 73. Kc5 {[%clk 0:00:12]} 73...
g4 {[%clk 0:00:01.6]} 74. Bxg4 {[%clk 0:00:11.7]} 74... h3 {[%clk 0:00:02.1]}
75. Bxh3 {[%clk 0:00:12]} 1-0